bitfinex-derivatives/quotes_BNBF0:USTF0_20260221
["timestamp","ask_amount","ask_price","bid_price","bid_amount"]
[1771684148204,0.94352796,633.62,632.59,1.426]
[1771684148205,1.1822369,633.62,632.62,2.32889858]
[1771684148401,0.94352796,633.61,632.62,2.32889858]
[1771684148601,0.94352796,633.6,632.62,2.32889858]
[1771684148803,0.94352796,633.59,632.62,2.32889858]
[1771684149102,0.94352796,633.58,632.62,2.32889858]
[1771684149402,0.94352796,633.57,632.64,2.32889858]
[1771684149604,0.94352796,633.56,632.64,2.32889858]
[1771684149805,0.94352796,633.55,632.64,2.32889858]
[1771684150007,0.94352796,633.54,632.64,2.32889858]
[1771684150305,0.94352796,633.53,632.65,2.32889858]
[1771684150606,0.94352796,633.52,632.65,2.32889858]
[1771684150806,0.94352796,633.51,632.65,2.32889858]
[1771684151007,0.94352796,633.5,632.65,2.32889858]
[1771684151208,2.3538975,633.83,632.59,1.426]
[1771684151209,0.94352796,633.49,632.66,2.32889858]
[1771684151408,0.94352796,633.48,632.66,2.32889858]
[1771684151608,0.94821478,633.47,632.66,2.32889858]
[1771684151805,0.94821478,633.46,632.66,2.32889858]
[1771684152008,0.94821478,633.45,632.66,2.32889858]
[1771684152208,0.94821478,633.44,632.67,2.32889858]
[1771684152510,0.94821478,633.43,632.67,2.32889858]
[1771684152713,0.94821478,633.42,632.67,2.32889858]
[1771684153011,0.94821478,633.41,632.67,2.32889858]
[1771684153210,1.1812513,633.58,632.68,2.32889858]
[1771684153211,0.94821478,633.4,632.68,2.32889858]
[1771684153414,0.94821478,633.39,632.68,2.32889858]
[1771684153610,0.94821478,633.39,632.59,1.426]
[1771684153611,0.94821478,633.38,632.67,2.32889858]
[1771684153913,0.94821478,633.37,632.67,2.32889858]
[1771684154212,0.94821478,633.36,632.67,2.32889858]
[1771684154410,1.1812513,633.56,632.67,2.32889858]
[1771684154714,0.94891033,633.55,632.67,2.32889858]
[1771684155010,0.94891033,633.54,632.67,2.32889858]
[1771684155212,0.94891033,633.53,632.68,2.32889858]
[1771684155412,0.94891033,633.52,632.68,2.32889858]
[1771684155608,0.94891033,633.51,632.68,2.32889858]
[1771684155809,0.94891033,633.5,632.68,2.32889858]
[1771684156008,0.94891033,633.49,632.68,2.32889858]
[1771684156213,0.94891033,633.48,632.68,2.32889858]
[1771684156409,0.94891033,633.47,632.68,2.32889858]
[1771684156608,0.94891033,633.46,632.68,2.32889858]
[1771684156909,0.94891033,633.45,632.68,2.32889858]
[1771684157113,0.94891033,633.44,632.68,2.32889858]
[1771684157311,0.94891033,633.43,632.69,2.32889858]
[1771684157608,0.94891033,633.42,632.69,2.32889858]
[1771684157808,0.94891033,633.41,632.69,2.32889858]
[1771684158013,0.94891033,633.4,632.69,2.32889858]
[1771684158214,0.94891033,633.39,632.69,2.32889858]
[1771684158413,0.94891033,633.38,632.69,2.32889858]
[1771684158612,0.94891033,633.37,632.69,2.32889858]
[1771684158815,0.94891033,633.36,632.69,2.32889858]
[1771684159014,1.1812513,633.56,632.69,2.32889858]
[1771684159215,0.9491681,633.55,632.69,2.32889858]
[1771684159518,0.9491681,633.54,632.69,2.32889858]
[1771684159813,0.9491681,633.53,632.69,2.32889858]
[1771684160018,0.9491681,633.52,632.69,2.32889858]
[1771684160218,0.9491681,633.51,632.7,2.32889858]
[1771684160418,0.9491681,633.5,632.7,2.32889858]
[1771684160616,0.9491681,633.49,632.7,2.32889858]
[1771684160820,0.9491681,633.48,632.7,2.32889858]
[1771684161021,0.9491681,633.47,632.7,2.32889858]
[1771684161318,0.9491681,633.46,632.7,2.32889858]
[1771684161522,0.9491681,633.45,632.7,2.32889858]
[1771684161723,0.9491681,633.44,632.7,2.32889858]
[1771684161924,0.9491681,633.43,632.7,2.32889858]
[1771684162120,0.9491681,633.42,632.7,2.32889858]
[1771684162324,0.9491681,633.41,632.7,2.32889858]
[1771684162523,0.9491681,633.4,632.7,2.32889858]
[1771684162722,0.9491681,633.39,632.7,2.32889858]
[1771684163025,0.9491681,633.38,632.7,2.32889858]
[1771684163326,0.9491681,633.37,632.71,2.32889858]
[1771684163622,0.9491681,633.36,632.71,2.32889858]
[1771684163826,1.1812513,633.56,632.71,2.32889858]
[1771684164024,0.94817614,633.55,632.71,2.32889858]
[1771684164221,1.1812513,633.56,632.71,2.32889858]
[1771684164222,0.94817614,633.54,632.71,2.32889858]
[1771684164427,0.94817614,633.53,632.72,2.32889858]
[1771684164723,0.94817614,633.52,632.72,2.32889858]
[1771684164927,0.94817614,633.51,632.72,2.32889858]
[1771684165126,0.94817614,633.5,632.72,2.32889858]
[1771684165426,0.94817614,633.49,632.72,2.32889858]
[1771684165626,0.94817614,633.48,632.72,2.32889858]
[1771684165827,0.94817614,633.47,632.72,2.32889858]
[1771684166025,0.94817614,633.46,632.72,2.32889858]
[1771684166226,0.94817614,633.45,632.72,2.32889858]
[1771684166527,0.94817614,633.44,632.72,2.32889858]
[1771684166726,0.94817614,633.43,632.72,2.32889858]
[1771684166924,0.94817614,633.42,632.72,2.32889858]
[1771684167123,0.94817614,633.41,632.72,2.32889858]
[1771684167325,0.94817614,633.4,632.72,2.32889858]
[1771684167528,0.94817614,633.39,632.72,2.32889858]
[1771684167728,0.94817614,633.38,632.72,2.32889858]
[1771684168027,0.94817614,633.37,632.72,2.32889858]
[1771684168225,0.94817614,633.36,632.72,2.32889858]
[1771684168425,1.1812513,633.56,632.72,2.32889858]
[1771684168628,0.94839393,633.55,632.72,2.32889858]
[1771684168829,0.94839393,633.54,632.72,2.32889858]
[1771684169029,0.94839393,633.53,632.72,2.32889858]
[1771684169226,1.1812513,633.56,632.59,1.426]
[1771684169227,0.94839393,633.52,632.73,2.32889858]
[1771684169431,0.94839393,633.51,632.73,2.32889858]
[1771684169631,0.94839393,633.5,632.73,2.32889858]
[1771684169832,0.94839393,633.49,632.73,2.32889858]
[1771684170033,0.94839393,633.48,632.73,2.32889858]
[1771684170232,0.94839393,633.47,632.73,2.32889858]
[1771684170430,0.94839393,633.46,632.73,2.32889858]
[1771684170630,0.94839393,633.45,632.73,2.32889858]
[1771684170828,0.94839393,633.44,632.73,2.32889858]
[1771684171033,0.94839393,633.43,632.73,2.32889858]
[1771684171334,0.94839393,633.42,632.73,2.32889858]
[1771684171535,0.94839393,633.41,632.73,2.32889858]
[1771684171834,0.94839393,633.4,632.73,2.32889858]
[1771684172134,0.94839393,633.39,632.73,2.32889858]
[1771684172331,0.94839393,633.38,632.73,2.32889858]
[1771684172634,0.94839393,633.37,632.73,2.32889858]
[1771684172831,0.94839393,633.36,632.73,2.32889858]
[1771684173032,1.1812513,633.56,632.73,2.32889858]
[1771684173237,0.94859447,633.55,632.73,2.32889858]
[1771684173535,0.94859447,633.54,632.72,2.32889858]
[1771684173735,0.94859447,633.53,632.72,2.32889858]
[1771684173932,0.94859447,633.52,632.72,2.32889858]
[1771684174136,0.94859447,633.51,632.72,2.32889858]
[1771684174334,0.94859447,633.5,632.72,2.32889858]
[1771684174533,0.94859447,633.49,632.72,2.32889858]
[1771684174734,0.94859447,633.48,632.72,2.32889858]
[1771684175035,0.94859447,633.47,632.72,2.32889858]
[1771684175238,0.94859447,633.46,632.72,2.32889858]
[1771684175439,0.94859447,633.45,632.72,2.32889858]
[1771684175633,0.94859447,633.44,632.72,2.32889858]
[1771684175837,0.94859447,633.43,632.72,2.32889858]
[1771684176138,0.94859447,633.42,632.72,2.32889858]
[1771684176335,0.94859447,633.41,632.72,2.32889858]
[1771684176535,0.94859447,633.4,632.72,2.32889858]
[1771684176833,0.94859447,633.39,632.72,2.32889858]
[1771684177039,0.94859447,633.38,632.72,2.32889858]
[1771684177237,0.94859447,633.37,632.73,2.32889858]
[1771684177539,0.94859447,633.36,632.73,2.32889858]
[1771684177740,0.94859447,633.35,632.73,2.32889858]
[1771684178035,0.94859447,633.34,632.73,2.32889858]
[1771684178235,1.1812513,633.54,632.73,2.32889858]
[1771684178236,0.94859447,633.33,632.73,2.32889858]
[1771684178434,1.1812513,633.54,632.73,2.32889858]
[1771684178637,0.94897364,633.53,632.73,2.32889858]
[1771684178840,0.94897364,633.52,632.73,2.32889858]
[1771684179139,0.94897364,633.51,632.73,2.32889858]
[1771684179334,0.94897364,633.5,632.73,2.32889858]
[1771684179634,0.94897364,633.49,632.73,2.32889858]
[1771684179838,0.94897364,633.48,632.73,2.32889858]
[1771684180038,0.94897364,633.47,632.73,2.32889858]
[1771684180238,0.94897364,633.46,632.73,2.32889858]
[1771684180438,0.94897364,633.45,632.73,2.32889858]
[1771684180637,0.94897364,633.44,632.73,2.32889858]
[1771684180836,0.94897364,633.43,632.73,2.32889858]
[1771684181038,0.94897364,633.42,632.73,2.32889858]
[1771684181237,0.94897364,633.41,632.74,2.32889858]
[1771684181437,0.94897364,633.4,632.74,2.32889858]
[1771684181640,0.94897364,633.39,632.74,2.32889858]
[1771684181837,0.94897364,633.38,632.74,2.32889858]
[1771684182139,0.94897364,633.37,632.74,2.32889858]
[1771684182338,0.94897364,633.36,632.74,2.32889858]
[1771684182642,0.94897364,633.35,632.74,2.32889858]
[1771684182840,0.94897364,633.34,632.74,2.32889858]
[1771684183043,0.94897364,633.33,632.74,2.32889858]
[1771684183243,0.94897364,633.32,632.74,2.32889858]
[1771684183444,1.1812513,633.52,632.74,2.32889858]
[1771684183645,0.9494141,633.51,632.74,2.32889858]
[1771684183844,1.1812513,633.52,632.74,2.32889858]
[1771684183845,0.9494141,633.5,632.74,2.32889858]
[1771684184045,0.9494141,633.49,632.74,2.32889858]
[1771684184245,0.9494141,633.48,632.74,2.32889858]
[1771684184441,0.9494141,633.47,632.75,1.656]
[1771684184641,0.9494141,633.46,632.75,1.656]
[1771684184842,0.9494141,633.45,632.75,1.656]
[1771684185144,0.9494141,633.44,632.75,1.656]
[1771684185340,0.9494141,633.43,632.75,1.656]
[1771684185545,0.9494141,633.42,632.75,1.656]
[1771684185844,0.9494141,633.41,632.75,1.656]
[1771684186039,0.9494141,633.4,632.75,1.656]
[1771684186243,0.9494141,633.39,632.75,1.656]
[1771684186440,0.9494141,633.38,632.75,1.656]
[1771684186739,0.9494141,633.37,632.75,1.656]
[1771684186940,0.9494141,633.36,632.75,1.656]
[1771684187142,0.9494141,633.35,632.75,1.656]
[1771684187444,0.9494141,633.34,632.75,1.656]
[1771684187643,0.9494141,633.33,632.75,1.656]
[1771684187841,0.9494141,633.32,632.75,1.656]
[1771684188043,1.1812513,633.52,632.75,1.656]
[1771684188245,0.94941895,633.51,632.75,1.656]
[1771684188443,0.94941895,633.5,632.75,1.656]
[1771684188644,0.94941895,633.49,632.75,1.656]
[1771684188841,0.94941895,633.48,632.75,1.656]
[1771684189142,0.94941895,633.47,632.75,1.656]
[1771684189341,0.94941895,633.46,632.75,1.656]
[1771684189642,0.94941895,633.45,632.75,1.656]
[1771684189843,0.94941895,633.44,632.75,1.656]
[1771684190042,0.94941895,633.43,632.75,1.656]
[1771684190243,0.94941895,633.42,632.75,1.656]
[1771684190441,0.94941895,633.41,632.75,1.656]
[1771684190643,0.94941895,633.4,632.75,1.656]
[1771684190842,0.94941895,633.39,632.75,1.656]
[1771684191041,0.94941895,633.38,632.75,1.656]
[1771684191243,0.94941895,633.37,632.75,1.656]
[1771684191542,0.94941895,633.36,632.75,1.656]
[1771684191745,0.94941895,633.35,632.75,1.656]
[1771684191946,0.94941895,633.34,632.75,1.656]
[1771684192245,0.94941895,633.33,632.75,1.656]
[1771684192443,0.94941895,633.32,632.75,1.656]
[1771684192647,0.94941895,633.31,632.75,1.656]
[1771684192847,0.94941895,633.3,632.75,1.656]
[1771684193044,0.94941895,633.29,632.75,1.656]
[1771684193348,0.94941895,633.28,632.75,1.656]
[1771684193546,0.94941895,633.27,632.75,1.656]
[1771684193847,0.94941895,633.26,632.75,1.656]
[1771684194149,0.94941895,633.25,632.75,1.656]
[1771684194443,0.94941895,633.24,632.75,1.656]
[1771684194644,0.94941895,633.23,632.75,1.656]
[1771684194849,1.1812513,633.43,632.75,1.656]
[1771684195049,2.1290199,633.42,632.75,1.656]
[1771684195245,3.9126045,634.11,632.75,1.656]
[1771684195246,2.1290199,633.41,632.75,1.656]
[1771684195545,0.9477686,633.4,632.75,1.656]
[1771684195745,0.9477686,633.39,632.75,1.656]
[1771684195949,0.9477686,633.38,632.75,1.656]
[1771684196149,0.9477686,633.37,632.75,1.656]
[1771684196449,0.9477686,633.36,632.75,1.656]
[1771684196650,0.9477686,633.35,632.75,1.656]
[1771684196850,0.9477686,633.34,632.75,1.656]
[1771684197049,0.9477686,633.33,632.75,1.656]
[1771684197250,0.9477686,633.32,632.75,1.656]
[1771684197548,0.9477686,633.31,632.75,1.656]
[1771684197747,0.9477686,633.3,632.75,1.656]
[1771684197947,1.1812513,633.36,632.75,1.656]
[1771684197948,0.9477686,633.29,632.75,1.656]
[1771684198247,0.9477686,633.28,632.75,1.656]
[1771684198550,0.9477686,633.27,632.75,1.656]
[1771684198750,0.9477686,633.26,632.75,1.656]
[1771684198947,0.9477686,633.25,632.75,1.656]
[1771684199151,0.9477686,633.24,632.75,1.656]
[1771684199352,0.9477686,633.23,632.75,1.656]
[1771684199547,0.9477686,633.22,632.58,0.27485655]
[1771684199748,0.9477686,633.21,632.58,0.27485655]
[1771684199952,0.9477686,633.2,632.58,0.27485655]
[1771684200149,0.9477686,633.19,632.58,0.27485655]
[1771684200353,0.9477686,633.18,632.58,0.27485655]
[1771684200555,1.1812513,633.39,632.58,0.27485655]
[1771684200854,0.94639352,633.38,632.58,0.27485655]
[1771684201054,3.9126045,634.07,632.58,0.27485655]
[1771684201055,0.94639352,633.37,632.58,0.27485655]
[1771684201350,0.94630637,633.36,632.58,0.27485655]
[1771684201554,0.94630637,633.35,632.58,0.27485655]
[1771684201751,0.94630637,633.34,632.58,0.27485655]
[1771684201955,0.94630637,633.33,632.58,0.27485655]
[1771684202149,0.94630637,633.32,632.58,0.27485655]
[1771684202353,0.94630637,633.31,632.58,0.27485655]
[1771684202653,0.94630637,633.3,632.58,0.27485655]
[1771684202854,0.94630637,633.29,632.58,0.27485655]
[1771684203051,0.94630637,633.28,632.58,0.27485655]
[1771684203254,0.94630637,633.27,632.58,0.27485655]
[1771684203454,0.94630637,633.26,632.59,1.435]
[1771684203651,0.94630637,633.25,632.59,1.435]
[1771684203855,0.94630637,633.24,632.59,1.435]
[1771684204055,0.94630637,633.23,632.59,1.435]
[1771684204254,0.94630637,633.22,632.59,1.435]
[1771684204452,1.18090402,633.42,632.59,1.435]
[1771684204657,0.94582404,633.41,632.59,1.435]
[1771684204954,0.94582404,633.4,632.59,1.435]
[1771684205151,0.94582404,633.39,632.59,1.435]
[1771684205354,0.94582404,633.38,632.59,1.435]
[1771684205552,1.18090402,633.43,632.59,1.435]
[1771684205553,0.94582404,633.37,632.59,1.435]
[1771684205858,0.94582404,633.36,632.59,1.435]
[1771684206057,0.94582404,633.35,632.59,1.435]
[1771684206254,0.94582404,633.34,632.59,1.435]
[1771684206456,0.94582404,633.33,632.59,1.435]
[1771684206756,0.94582404,633.32,632.59,1.435]
[1771684206958,0.94582404,633.31,632.59,1.435]
[1771684207158,0.94582404,633.3,632.59,1.435]
[1771684207357,0.94582404,633.29,632.59,1.435]
[1771684207558,0.94582404,633.28,632.59,1.435]
[1771684207756,0.94582404,633.27,632.59,1.435]
[1771684207955,0.94582404,633.26,632.59,1.435]
[1771684208156,0.94582404,633.25,632.59,1.435]
[1771684208355,0.94582404,633.24,632.59,1.435]
[1771684208556,0.94582404,633.23,632.59,1.435]
[1771684208756,0.94582404,633.22,632.59,1.435]
[1771684208955,0.94582404,633.21,632.59,1.435]
[1771684209159,1.18090402,633.41,632.59,1.435]
[1771684209359,0.94537998,633.4,632.59,1.435]
[1771684209559,0.94537998,633.39,632.59,1.435]
[1771684209759,0.94537998,633.38,632.59,1.435]
[1771684209960,0.94537998,633.37,632.59,1.435]
[1771684210256,0.94537998,633.36,632.59,1.435]
[1771684210456,0.94537998,633.35,632.59,1.435]
[1771684210655,0.94537998,633.34,632.59,1.435]
[1771684210856,0.94537998,633.33,632.59,1.435]
[1771684211059,0.94537998,633.32,632.59,1.435]
[1771684211257,0.94537998,633.31,632.59,1.435]
[1771684211459,1.18090402,633.42,632.59,1.435]
[1771684211460,0.94537998,633.3,632.59,1.435]
[1771684211759,0.94537998,633.29,632.59,1.435]
[1771684211958,0.94537998,633.28,632.59,1.435]
[1771684212156,0.94537998,633.27,632.59,1.435]
[1771684212458,0.94537998,633.26,632.59,1.435]
[1771684212657,0.94537998,633.25,632.59,1.435]
[1771684212963,0.94537998,633.24,632.59,1.435]
[1771684213162,0.94537998,633.23,632.59,1.435]
[1771684213362,0.94537998,633.22,632.59,1.435]
[1771684213562,1.18090402,633.42,632.59,1.435]
[1771684213763,0.94510692,633.41,632.59,1.435]
[1771684213962,0.94510692,633.4,632.59,1.435]
[1771684214161,0.94510692,633.39,632.59,1.435]
[1771684214365,0.94510692,633.38,632.59,1.435]
[1771684214561,0.94510692,633.37,632.59,1.435]
[1771684214761,0.94510692,633.36,632.59,1.435]
[1771684214965,0.94510692,633.35,632.59,1.435]
[1771684215162,0.94510692,633.34,632.59,1.435]
[1771684215461,0.94510692,633.33,632.59,1.435]
[1771684215661,0.94510692,633.32,632.59,1.435]
[1771684215864,0.94510692,633.31,632.59,1.435]
[1771684216062,0.94510692,633.3,632.59,1.435]
[1771684216266,0.94510692,633.29,632.59,1.435]
[1771684216566,0.94510692,633.28,632.59,1.435]
[1771684216763,0.94510692,633.27,632.59,1.435]
[1771684216962,0.94510692,633.26,632.59,1.435]
[1771684217262,0.94510692,633.25,632.59,1.435]
[1771684217466,0.94510692,633.24,632.59,1.435]
[1771684217667,0.94510692,633.23,632.59,1.435]
[1771684217868,0.94510692,633.22,632.59,1.435]
[1771684218066,0.94511937,633.21,632.59,1.435]
[1771684218269,1.18090402,633.42,632.59,1.435]
[1771684218469,0.94515519,633.41,632.59,1.435]
[1771684218764,0.94515519,633.4,632.59,1.435]
[1771684218969,0.94515519,633.39,632.59,1.435]
[1771684219268,0.94515519,633.38,632.59,1.435]
[1771684219465,0.94515519,633.37,632.59,1.435]
[1771684219669,0.94515519,633.36,632.59,1.435]
[1771684219868,0.94515519,633.35,632.59,1.435]
[1771684220164,0.94515519,633.34,632.59,1.435]
[1771684220369,0.94515519,633.33,632.59,1.435]
[1771684220567,0.94515519,633.32,632.59,1.435]
[1771684220767,0.94515519,633.31,632.59,1.435]
[1771684220971,0.94515519,633.3,632.59,1.435]
[1771684221170,0.94515519,633.29,632.59,1.435]
[1771684221370,0.94515519,633.28,632.59,1.435]
[1771684221570,0.94515519,633.27,632.59,1.435]
[1771684221768,0.94515519,633.26,632.59,1.435]
[1771684221970,0.94515519,633.25,632.59,1.435]
[1771684222168,0.94515519,633.24,632.59,1.435]
[1771684222371,0.94515519,633.23,632.59,1.435]
[1771684222571,0.94515519,633.22,632.59,1.435]
[1771684222770,0.94515519,633.21,632.59,1.435]
[1771684222970,0.94515519,633.2,632.59,1.435]
[1771684223172,1.18090402,633.4,632.59,1.435]
[1771684223476,0.9510719,633.39,632.59,1.435]
[1771684223674,0.9510719,633.38,632.59,1.435]
[1771684223872,0.9510719,633.37,632.59,1.435]
[1771684224071,0.9510719,633.36,632.59,1.435]
[1771684224274,0.9510719,633.35,632.59,1.435]
[1771684224472,0.9510719,633.34,632.59,1.435]
[1771684224775,0.9510719,633.33,632.59,1.435]
[1771684224975,0.9510719,633.32,632.59,1.435]
[1771684225173,0.9510719,633.31,632.59,1.435]
[1771684225376,0.9510719,633.3,632.59,1.435]
[1771684225579,0.9510719,633.29,632.58,0.27485655]
[1771684225872,0.9510719,633.28,632.58,0.27485655]
[1771684226077,0.9510719,633.27,632.58,0.27485655]
[1771684226374,0.9510719,633.26,632.58,0.27485655]
[1771684226578,0.9510719,633.25,632.58,0.27485655]
[1771684226774,0.9510719,633.24,632.58,0.27485655]
[1771684226978,0.9510719,633.23,632.58,0.27485655]
[1771684227175,0.9510719,633.22,632.58,0.27485655]
[1771684227378,0.9510719,633.21,632.58,0.27485655]
[1771684227675,0.9510719,633.2,632.58,0.27485655]
[1771684227878,0.9510719,633.19,632.58,0.27485655]
[1771684228079,0.9510719,633.18,632.58,0.27485655]
[1771684228379,1.18090402,633.39,632.58,0.27485655]
[1771684228579,0.95173435,633.38,632.58,0.27485655]
[1771684228780,0.95173435,633.37,632.58,0.27485655]
[1771684228980,0.95173435,633.36,632.58,0.27485655]
[1771684229275,0.95173435,633.35,632.58,0.27485655]
[1771684229578,0.95173435,633.34,632.59,1.27]
[1771684229777,0.95173435,633.33,632.59,1.27]
[1771684229979,0.95173435,633.32,632.59,1.27]
[1771684230280,0.95173435,633.31,632.59,1.27]
[1771684230475,0.95173435,633.3,632.59,1.27]
[1771684230677,0.95173435,633.29,632.59,1.27]
[1771684230880,0.95173435,633.28,632.59,1.27]
[1771684231080,0.95173435,633.27,632.59,1.27]
[1771684231277,0.95173435,633.26,632.59,1.27]
[1771684231482,0.95173435,633.25,632.59,1.27]
[1771684231780,0.95173435,633.24,632.59,1.27]
[1771684231980,0.95173435,633.23,632.59,1.27]
[1771684232177,0.95173435,633.22,632.59,1.27]
[1771684232377,1.18090402,633.37,632.59,1.27]
[1771684232378,0.95173435,633.21,632.59,1.27]
[1771684232581,0.95173435,633.2,632.59,1.27]
[1771684232877,0.95173435,633.19,632.59,1.27]
[1771684233077,0.95173435,633.18,632.59,1.27]
[1771684233282,3.9126045,634.06,632.59,1.27]
[1771684233283,0.95173435,633.17,632.59,1.27]
[1771684233477,3.9126045,634.06,632.59,1.27]
[1771684233478,1.18090402,633.4,632.59,1.27]
[1771684233682,0.95299659,633.39,632.59,1.27]
[1771684233880,0.95299659,633.38,632.59,1.27]
[1771684234079,0.95299659,633.37,632.59,1.27]
[1771684234284,0.95299659,633.36,632.59,1.27]
[1771684234481,0.95299659,633.35,632.59,1.27]
[1771684234781,0.95299659,633.34,632.59,1.27]
[1771684234984,0.95299659,633.33,632.59,1.27]
[1771684235182,0.95299659,633.32,632.59,1.27]
[1771684235485,0.95299659,633.31,632.59,1.27]
[1771684235685,0.95299659,633.3,632.59,1.27]
[1771684235981,0.95299659,633.29,632.59,1.27]
[1771684236181,0.95299659,633.28,632.59,1.27]
[1771684236382,0.95299659,633.27,632.59,1.27]
[1771684236680,0.95299659,633.26,632.59,1.27]
[1771684236885,0.95299659,633.25,632.59,1.27]
[1771684237083,0.95299659,633.24,632.59,1.27]
[1771684237286,0.95299659,633.23,632.59,1.27]
[1771684237485,0.95299659,633.22,632.59,1.27]
[1771684237781,0.95299659,633.21,632.59,1.27]
[1771684237980,0.95299659,633.2,632.59,1.27]
[1771684238182,0.95299659,633.19,632.59,1.27]
[1771684238487,0.95299659,633.18,632.59,1.27]
[1771684238682,1.18090402,633.38,632.59,1.27]
[1771684238886,0.9541982,633.37,632.59,1.27]
[1771684239084,0.9541982,633.36,632.59,1.27]
[1771684239282,0.9541982,633.35,632.59,1.27]
[1771684239583,0.9541982,633.34,632.59,1.27]
[1771684239788,0.9541982,633.33,632.59,1.27]
[1771684240084,0.9541982,633.32,632.59,1.27]
[1771684240287,0.9541982,633.31,632.59,1.27]
[1771684240584,0.9541982,633.3,632.59,1.27]
[1771684240787,0.9541982,633.29,632.59,1.27]
[1771684241084,0.9541982,633.28,632.59,1.27]
[1771684241287,0.9541982,633.27,632.59,1.27]
[1771684241487,0.9541982,633.26,632.59,1.27]
[1771684241688,0.9541982,633.25,632.59,1.27]
[1771684241888,0.9541982,633.24,632.59,1.27]
[1771684242090,0.9541982,633.23,632.59,1.27]
[1771684242285,0.9541982,633.22,632.59,1.27]
[1771684242489,0.9541982,633.21,632.59,1.27]
[1771684242689,0.9541982,633.2,632.59,1.27]
[1771684242989,0.9541982,633.19,632.59,1.27]
[1771684243187,0.9541982,633.18,632.59,1.27]
[1771684243390,0.9541982,633.17,632.59,1.27]
[1771684243589,0.9541982,633.16,632.59,1.27]
[1771684243790,1.18090402,633.36,632.59,1.27]
[1771684243991,0.95429992,633.35,632.59,1.27]
[1771684244285,0.95429992,633.34,632.59,1.27]
[1771684244490,0.95429992,633.33,632.59,1.27]
[1771684244790,0.95429992,633.32,632.59,1.27]
[1771684245090,0.95429992,633.31,632.59,1.27]
[1771684245284,0.95429992,633.3,632.59,1.27]
[1771684245489,0.95429992,633.29,632.59,1.27]
[1771684245686,0.95429992,633.28,632.59,1.27]
[1771684245888,0.95429992,633.27,632.59,1.27]
[1771684246086,0.95429992,633.26,632.59,1.27]
[1771684246290,0.95429992,633.25,632.59,1.27]
[1771684246486,0.95429992,633.24,632.59,1.27]
[1771684246684,0.95429992,633.23,632.59,1.27]
[1771684246884,1.18090402,633.36,632.59,1.27]
[1771684246885,0.95429992,633.22,632.59,1.27]
[1771684247089,0.95429992,633.21,632.59,1.27]
[1771684247389,0.95429992,633.2,632.59,1.27]
[1771684247589,0.95429992,633.19,632.59,1.27]
[1771684247786,0.95429992,633.18,632.59,1.27]
[1771684247990,0.95429992,633.17,632.59,1.27]
[1771684248285,0.95429992,633.16,632.59,1.27]
[1771684248487,1.18090402,633.36,632.59,1.27]
[1771684248685,0.95426532,633.35,632.59,1.27]
[1771684248887,0.95426532,633.34,632.59,1.27]
[1771684249090,0.95426532,633.33,632.59,1.27]
[1771684249387,0.95426532,633.32,632.59,1.27]
[1771684249691,0.95426532,633.31,632.59,1.27]
[1771684249888,0.95426532,633.3,632.59,1.27]
[1771684250189,0.95426532,633.29,632.59,1.27]
[1771684250393,0.95426532,633.28,632.59,1.27]
[1771684250692,0.95426532,633.27,632.59,1.27]
[1771684250892,0.95426532,633.26,632.59,1.27]
[1771684251192,1.18090402,633.37,632.59,1.27]
[1771684251193,0.95426532,633.25,632.59,1.27]
[1771684251390,0.95426532,633.24,632.59,1.27]
[1771684251588,0.95426532,633.23,632.59,1.27]
[1771684251790,0.95426532,633.22,632.59,1.27]
[1771684251989,0.95426532,633.21,632.59,1.27]
[1771684252188,0.95426532,633.2,632.59,1.27]
[1771684252391,0.95426532,633.19,632.59,1.27]
[1771684252689,0.95426532,633.18,632.59,1.27]
[1771684252893,0.95426532,633.17,632.59,1.27]
[1771684253191,1.18090402,633.37,632.59,1.27]
[1771684253389,0.94844669,633.36,632.59,1.27]
[1771684253597,0.94844669,633.35,632.59,1.27]
[1771684253892,0.94844669,633.34,632.59,1.27]
[1771684254091,0.94844669,633.33,632.59,1.27]
[1771684254293,0.94844669,633.32,632.59,1.27]
[1771684254489,0.94844669,633.31,632.59,1.27]
[1771684254693,0.94844669,633.3,632.59,1.27]
[1771684254994,0.94844669,633.29,632.59,1.27]